[Event "Titled Tuesday Blitz November 14 Early 2023"]
[White "Molina, Roberto Junio Brito"]
[Black "Hristodoulou, Panagiotis"]
[WhiteFideId "2109450"]
[BlackFideId "4214340"]
[WhiteElo "2803"]
[BlackElo "2648"]
[Result "0-1"]
[Round "8"]
[TimeControl "180+1"]
[Date "2023.11.14"]
[WhiteClock "0:00:10"]
[BlackClock "0:00:09"]
[Board "43"]

1. d4 {[%clk 0:03:00]}  Nf6 {[%clk 0:02:56]} 2. Nf3 {[%clk 0:03:00]}  e6 {[%clk 0:02:50]} 3. e3 {[%clk 0:02:59]}  b6 {[%clk 0:02:43]} 4. Bd3 {[%clk 0:02:59]}  Bb7 {[%clk 0:02:43]} 5. O-O {[%clk 0:02:58]}  Be7 {[%clk 0:02:43]} 6. Qe2 {[%clk 0:02:58]}  d5 {[%clk 0:02:43]} 7. Nbd2 {[%clk 0:02:57]}  c5 {[%clk 0:02:40]} 8. c3 {[%clk 0:02:57]}  O-O {[%clk 0:02:39]} 9. e4 {[%clk 0:02:54]}  dxe4 {[%clk 0:02:38]} 10. Nxe4 {[%clk 0:02:54]}  Nxe4 {[%clk 0:02:37]} 11. Bxe4 {[%clk 0:02:53]}  Bxe4 {[%clk 0:02:38]} 12. Qxe4 {[%clk 0:02:54]}  Nd7 {[%clk 0:02:38]} 13. Rd1 {[%clk 0:02:54]}  Nf6 {[%clk 0:02:34]} 14. Qe2 {[%clk 0:02:53]}  Qc7 {[%clk 0:02:25]} 15. Bg5 {[%clk 0:02:49]}  Rfd8 {[%clk 0:02:17]} 16. dxc5 {[%clk 0:02:44]}  Qxc5 {[%clk 0:02:15]} 17. c4 {[%clk 0:02:10]}  h6 {[%clk 0:02:05]} 18. Be3 {[%clk 0:02:03]}  Qc7 {[%clk 0:02:03]} 19. Rac1 {[%clk 0:02:02]}  Bc5 {[%clk 0:01:53]} 20. b3 {[%clk 0:01:59]}  Ng4 {[%clk 0:01:45]} 21. Bxc5 {[%clk 0:01:57]}  Qxc5 {[%clk 0:01:43]} 22. h3 {[%clk 0:01:56]}  Nf6 {[%clk 0:01:43]} 23. Qe5 {[%clk 0:01:53]}  Qxe5 {[%clk 0:01:14]} 24. Nxe5 {[%clk 0:01:53]}  Kf8 {[%clk 0:01:10]} 25. Kf1 {[%clk 0:01:45]}  Rdc8 {[%clk 0:00:38]} 26. Ke2 {[%clk 0:01:44]}  Ke7 {[%clk 0:00:36]} 27. f4 {[%clk 0:01:42]}  Rc7 {[%clk 0:00:28]} 28. Rc3 {[%clk 0:01:41]}  Rd8 {[%clk 0:00:24]} 29. Rxd8 {[%clk 0:01:39]}  Kxd8 {[%clk 0:00:23]} 30. Rd3+ {[%clk 0:01:39]}  Ke7 {[%clk 0:00:23]} 31. g4 {[%clk 0:01:39]}  Nd7 {[%clk 0:00:22]} 32. Nf3 {[%clk 0:01:32]}  Nc5 {[%clk 0:00:20]} 33. Rd1 {[%clk 0:01:28]}  Rd7 {[%clk 0:00:20]} 34. Rxd7+ {[%clk 0:01:25]}  Nxd7 {[%clk 0:00:21]} 35. Ke3 {[%clk 0:01:23]}  Kd6 {[%clk 0:00:20]} 36. b4 {[%clk 0:01:22]}  a6 {[%clk 0:00:19]} 37. Kd4 {[%clk 0:01:20]}  Nb8 {[%clk 0:00:15]} 38. a3 {[%clk 0:01:18]}  Nc6+ {[%clk 0:00:14]} 39. Ke4 {[%clk 0:01:18]}  a5 {[%clk 0:00:09]} 40. Ne5 {[%clk 0:00:47]}  Nxe5 {[%clk 0:00:08]} 41. fxe5+ {[%clk 0:00:48]}  Kc6 {[%clk 0:00:08]} 42. h4 {[%clk 0:00:47]}  axb4 {[%clk 0:00:08]} 43. axb4 {[%clk 0:00:46]}  f6 {[%clk 0:00:04]} 44. Kf4 {[%clk 0:00:39]}  Kd7 {[%clk 0:00:03]} 45. g5 {[%clk 0:00:32]}  hxg5+ {[%clk 0:00:02]} 46. hxg5 {[%clk 0:00:33]}  f5 {[%clk 0:00:03]} 47. g6 {[%clk 0:00:32]}  Kc6 {[%clk 0:00:04]} 48. Ke3 {[%clk 0:00:32]}  Kc7 {[%clk 0:00:04]} 49. Kd4 {[%clk 0:00:32]}  Kc6 {[%clk 0:00:05]} 50. Kd3 {[%clk 0:00:32]}  b5 {[%clk 0:00:06]} 51. cxb5+ {[%clk 0:00:20]}  Kxb5 {[%clk 0:00:06]} 52. Kc3 {[%clk 0:00:21]}  f4 {[%clk 0:00:07]} 53. Kd4 {[%clk 0:00:20]}  Kxb4 {[%clk 0:00:07]} 54. Ke4 {[%clk 0:00:21]}  Kc4 {[%clk 0:00:08]} 55. Kf3 {[%clk 0:00:20]}  Kd4 {[%clk 0:00:09]} 56. Kxf4 {[%clk 0:00:10]}  Kd5 {[%clk 0:00:09]} 0-1


[Site "https://www.chess.com"]

[Event "Titled Tuesday Blitz November 14 Early 2023"]
[White "Materia, Marco"]
[Black "Fromm, Marius"]
[WhiteFideId "45150451"]
[BlackFideId "12993190"]
[WhiteElo "2803"]
[BlackElo "2642"]
[Result "0-1"]
[Round "8"]
[TimeControl "180+1"]
[Date "2023.11.14"]
[WhiteClock "0:01:03"]
[BlackClock "0:00:08"]
[Board "44"]

1. Nf3 {[%clk 0:03:00]}  c5 {[%clk 0:02:57]} 2. e3 {[%clk 0:02:59]}  Nf6 {[%clk 0:02:57]} 3. d4 {[%clk 0:03:00]}  e6 {[%clk 0:02:53]} 4. b3 {[%clk 0:02:56]}  d5 {[%clk 0:02:51]} 5. Bb2 {[%clk 0:02:56]}  Nc6 {[%clk 0:02:51]} 6. Nbd2 {[%clk 0:02:57]}  Be7 {[%clk 0:02:48]} 7. a3 {[%clk 0:02:57]}  cxd4 {[%clk 0:02:43]} 8. exd4 {[%clk 0:02:57]}  O-O {[%clk 0:02:43]} 9. Bd3 {[%clk 0:02:57]}  a6 {[%clk 0:02:36]} 10. O-O {[%clk 0:02:57]}  b5 {[%clk 0:02:36]} 11. Ne5 {[%clk 0:02:56]}  Bb7 {[%clk 0:02:33]} 12. f4 {[%clk 0:02:56]}  Qb6 {[%clk 0:02:29]} 13. c3 {[%clk 0:02:51]}  g6 {[%clk 0:02:22]} 14. Kh1 {[%clk 0:02:50]}  Rad8 {[%clk 0:02:16]} 15. Qf3 {[%clk 0:02:46]}  a5 {[%clk 0:02:15]} 16. b4 {[%clk 0:02:38]}  axb4 {[%clk 0:01:49]} 17. axb4 {[%clk 0:02:38]}  Ra8 {[%clk 0:01:50]} 18. Nb3 {[%clk 0:02:26]}  Rxa1 {[%clk 0:01:41]} 19. Rxa1 {[%clk 0:02:26]}  Ra8 {[%clk 0:01:42]} 20. Rxa8+ {[%clk 0:02:23]}  Bxa8 {[%clk 0:01:43]} 21. Nc5 {[%clk 0:02:10]}  Bxc5 {[%clk 0:01:29]} 22. dxc5 {[%clk 0:01:55]}  Qb8 {[%clk 0:01:29]} 23. Nxc6 {[%clk 0:01:53]}  Bxc6 {[%clk 0:01:30]} 24. h3 {[%clk 0:01:47]}  Ne4 {[%clk 0:01:28]} 25. Qe3 {[%clk 0:01:46]}  Qa8 {[%clk 0:01:18]} 26. Bxe4 {[%clk 0:01:41]}  dxe4 {[%clk 0:01:17]} 27. c4 {[%clk 0:01:42]}  bxc4 {[%clk 0:00:45]} 28. Qd4 {[%clk 0:01:40]}  Kf8 {[%clk 0:00:45]} 29. Qg7+ {[%clk 0:01:33]}  Ke8 {[%clk 0:00:38]} 30. Bf6 {[%clk 0:01:34]}  Bd5 {[%clk 0:00:32]} 31. Qg8+ {[%clk 0:01:33]}  Kd7 {[%clk 0:00:32]} 32. Qxf7+ {[%clk 0:01:33]}  Kc6 {[%clk 0:00:32]} 33. Bd4 {[%clk 0:01:27]}  e3 {[%clk 0:00:26]} 34. Bxe3 {[%clk 0:01:25]}  Qa1+ {[%clk 0:00:25]} 35. Kh2 {[%clk 0:01:24]}  Qb2 {[%clk 0:00:20]} 36. Qe8+ {[%clk 0:01:22]}  Kc7 {[%clk 0:00:16]} 37. Qe7+ {[%clk 0:01:21]}  Kc6 {[%clk 0:00:15]} 38. Qd6+ {[%clk 0:01:20]}  Kb5 {[%clk 0:00:16]} 39. Qd7+ {[%clk 0:01:15]}  Kxb4 {[%clk 0:00:16]} 40. Kg3 {[%clk 0:01:13]}  Qxg2+ {[%clk 0:00:16]} 41. Kh4 {[%clk 0:01:14]}  Qf3 {[%clk 0:00:09]} 42. Bc1 {[%clk 0:01:05]}  Qf2+ {[%clk 0:00:08]} 43. Kg5 {[%clk 0:01:04]}  Qg1+ {[%clk 0:00:08]} 44. Kh6 {[%clk 0:01:03]}  Qxc1 {[%clk 0:00:09]} 45. c6 {[%clk 0:01:04]}  Qxf4+ {[%clk 0:00:08]} 46. Kxh7 {[%clk 0:01:04]}  Bxc6 {[%clk 0:00:07]} 47. Qxc6 {[%clk 0:01:04]}  c3 {[%clk 0:00:06]} 48. Qb6+ {[%clk 0:01:03]}  Ka3 {[%clk 0:00:05]} 49. Qc5+ {[%clk 0:01:02]}  Kb2 {[%clk 0:00:05]} 50. Qb5+ {[%clk 0:01:01]}  Kc1 {[%clk 0:00:04]} 51. Kxg6 {[%clk 0:01:01]}  Qf5+ {[%clk 0:00:04]} 52. Qxf5 {[%clk 0:01:00]}  exf5 {[%clk 0:00:05]} 53. h4 {[%clk 0:01:01]}  c2 {[%clk 0:00:06]} 54. h5 {[%clk 0:01:02]}  Kd2 {[%clk 0:00:06]} 55. h6 {[%clk 0:01:02]}  c1=Q {[%clk 0:00:07]} 56. h7 {[%clk 0:01:03]}  Qc3 {[%clk 0:00:07]} 57. Kxf5 {[%clk 0:01:03]}  Qh8 {[%clk 0:00:07]} 58. Kg6 {[%clk 0:01:03]}  Ke3 {[%clk 0:00:08]} 0-1


[Site "https://www.chess.com"]

[Event "Titled Tuesday Blitz November 14 Early 2023"]
[White "Stark, Lars"]
[Black "Nazari, Arad"]
[WhiteFideId "4676386"]
[BlackFideId "12577324"]
[WhiteElo "2625"]
[BlackElo "2768"]
[Result "1-0"]
[Round "8"]
[TimeControl "180+1"]
[Date "2023.11.14"]
[WhiteClock "0:00:34"]
[BlackClock "0:00:13"]
[Board "45"]

1. c4 {[%clk 0:03:00]}  e5 {[%clk 0:02:58]} 2. g3 {[%clk 0:03:00]}  c6 {[%clk 0:02:53]} 3. d4 {[%clk 0:02:59]}  e4 {[%clk 0:02:53]} 4. d5 {[%clk 0:02:59]}  Nf6 {[%clk 0:02:51]} 5. Nc3 {[%clk 0:02:59]}  Bb4 {[%clk 0:02:49]} 6. Bd2 {[%clk 0:02:59]}  cxd5 {[%clk 0:02:42]} 7. Nxd5 {[%clk 0:02:59]}  Nxd5 {[%clk 0:02:40]} 8. cxd5 {[%clk 0:02:59]}  Qa5 {[%clk 0:02:38]} 9. Bxb4 {[%clk 0:02:57]}  Qxb4+ {[%clk 0:02:38]} 10. Qd2 {[%clk 0:02:58]}  Qxd2+ {[%clk 0:02:38]} 11. Kxd2 {[%clk 0:02:59]}  d6 {[%clk 0:02:33]} 12. Rc1 {[%clk 0:02:54]}  Nd7 {[%clk 0:02:31]} 13. e3 {[%clk 0:02:47]}  Nb6 {[%clk 0:02:17]} 14. Bc4 {[%clk 0:02:45]}  Bd7 {[%clk 0:02:09]} 15. Ne2 {[%clk 0:02:44]}  Ke7 {[%clk 0:02:07]} 16. Bb3 {[%clk 0:02:34]}  Rhc8 {[%clk 0:02:05]} 17. Nc3 {[%clk 0:02:33]}  f5 {[%clk 0:02:03]} 18. f3 {[%clk 0:02:17]}  exf3 {[%clk 0:02:01]} 19. Rhf1 {[%clk 0:02:17]}  Nc4+ {[%clk 0:01:55]} 20. Bxc4 {[%clk 0:02:15]}  Rxc4 {[%clk 0:01:56]} 21. Rxf3 {[%clk 0:02:16]}  Rac8 {[%clk 0:01:56]} 22. Rf4 {[%clk 0:02:16]}  b5 {[%clk 0:01:43]} 23. b3 {[%clk 0:02:13]}  R4c5 {[%clk 0:01:36]} 24. Rd4 {[%clk 0:02:13]}  g6 {[%clk 0:01:34]} 25. Ne2 {[%clk 0:02:04]}  a5 {[%clk 0:01:31]} 26. a3 {[%clk 0:02:03]}  Kf6 {[%clk 0:01:27]} 27. b4 {[%clk 0:02:00]}  axb4 {[%clk 0:01:27]} 28. axb4 {[%clk 0:02:01]}  Rxc1 {[%clk 0:01:27]} 29. Nxc1 {[%clk 0:02:01]}  Be8 {[%clk 0:01:25]} 30. Nd3 {[%clk 0:01:58]}  Bf7 {[%clk 0:01:25]} 31. Ne1 {[%clk 0:01:28]}  Ra8 {[%clk 0:01:22]} 32. h4 {[%clk 0:01:14]}  Ra2+ {[%clk 0:01:17]} 33. Kd3 {[%clk 0:01:14]}  Rb2 {[%clk 0:00:53]} 34. Nc2 {[%clk 0:01:01]}  Ke5 {[%clk 0:00:50]} 35. Kc3 {[%clk 0:00:53]}  Rb1 {[%clk 0:00:43]} 36. g4 {[%clk 0:00:36]}  Bxd5 {[%clk 0:00:35]} 37. gxf5 {[%clk 0:00:36]}  gxf5 {[%clk 0:00:35]} 38. Rf4 {[%clk 0:00:37]}  Rb3+ {[%clk 0:00:31]} 39. Kd2 {[%clk 0:00:36]}  Be4 {[%clk 0:00:30]} 40. Nd4 {[%clk 0:00:34]}  h6 {[%clk 0:00:13]} 41. Nxb3 {[%clk 0:00:34]} 1-0


[Site "https://www.chess.com"]

[Event "Titled Tuesday Blitz November 14 Early 2023"]
[White "Sokolovsky, Yahli"]
[Black "FoxOnTheRun97"]
[WhiteFideId "2820242"]
[WhiteElo "2760"]
[BlackElo "2623"]
[Result "1-0"]
[Round "8"]
[TimeControl "180+1"]
[Date "2023.11.14"]
[WhiteClock "0:00:13"]
[BlackClock "0:00:02"]
[Board "46"]

1. b3 {[%clk 0:03:00]}  Nf6 {[%clk 0:02:59]} 2. Bb2 {[%clk 0:03:01]}  d5 {[%clk 0:02:59]} 3. e3 {[%clk 0:03:02]}  Bf5 {[%clk 0:02:59]} 4. Nf3 {[%clk 0:03:02]}  e6 {[%clk 0:03:00]} 5. d4 {[%clk 0:03:03]}  Be7 {[%clk 0:02:56]} 6. Bd3 {[%clk 0:03:04]}  Ne4 {[%clk 0:02:54]} 7. Nbd2 {[%clk 0:03:03]}  O-O {[%clk 0:02:50]} 8. c3 {[%clk 0:02:50]}  Nd7 {[%clk 0:02:49]} 9. Qc2 {[%clk 0:02:49]}  Ndf6 {[%clk 0:02:45]} 10. Nh4 {[%clk 0:02:39]}  Nxf2 {[%clk 0:02:16]} 11. Nxf5 {[%clk 0:01:51]}  Nxd3+ {[%clk 0:02:02]} 12. Qxd3 {[%clk 0:01:51]}  exf5 {[%clk 0:02:01]} 13. Qxf5 {[%clk 0:01:52]}  g6 {[%clk 0:01:28]} 14. Qf3 {[%clk 0:01:48]}  c6 {[%clk 0:01:09]} 15. O-O-O {[%clk 0:01:48]}  a5 {[%clk 0:01:07]} 16. g4 {[%clk 0:01:34]}  a4 {[%clk 0:01:00]} 17. g5 {[%clk 0:01:34]}  Ne4 {[%clk 0:00:47]} 18. Nxe4 {[%clk 0:01:31]}  dxe4 {[%clk 0:00:48]} 19. Qxe4 {[%clk 0:01:32]}  axb3 {[%clk 0:00:47]} 20. axb3 {[%clk 0:01:33]}  Bxg5 {[%clk 0:00:47]} 21. Rde1 {[%clk 0:01:14]}  Re8 {[%clk 0:00:43]} 22. Qf3 {[%clk 0:01:11]}  Qd5 {[%clk 0:00:39]} 23. Qxd5 {[%clk 0:00:50]}  cxd5 {[%clk 0:00:40]} 24. Kd2 {[%clk 0:00:46]}  Ra2 {[%clk 0:00:37]} 25. Kc2 {[%clk 0:00:46]}  Rxe3 {[%clk 0:00:15]} 26. Rxe3 {[%clk 0:00:47]}  Bxe3 {[%clk 0:00:16]} 27. Re1 {[%clk 0:00:48]}  Bf4 {[%clk 0:00:16]} 28. h3 {[%clk 0:00:42]}  Ra6 {[%clk 0:00:14]} 29. Re7 {[%clk 0:00:40]}  Re6 {[%clk 0:00:13]} 30. Rxb7 {[%clk 0:00:40]}  Re2+ {[%clk 0:00:14]} 31. Kb1 {[%clk 0:00:40]}  Re3 {[%clk 0:00:14]} 32. b4 {[%clk 0:00:38]}  Rxh3 {[%clk 0:00:13]} 33. b5 {[%clk 0:00:34]}  h5 {[%clk 0:00:12]} 34. b6 {[%clk 0:00:23]}  Re3 {[%clk 0:00:11]} 35. Rd7 {[%clk 0:00:23]}  Re6 {[%clk 0:00:10]} 36. b7 {[%clk 0:00:21]}  Rb6 {[%clk 0:00:09]} 37. Kc2 {[%clk 0:00:18]}  h4 {[%clk 0:00:09]} 38. Bc1 {[%clk 0:00:17]}  Bxc1 {[%clk 0:00:07]} 39. Kxc1 {[%clk 0:00:18]}  Kg7 {[%clk 0:00:07]} 40. Rxd5 {[%clk 0:00:07]}  Rxb7 {[%clk 0:00:07]} 41. Rg5 {[%clk 0:00:04]}  f5 {[%clk 0:00:07]} 42. d5 {[%clk 0:00:03]}  Kf6 {[%clk 0:00:07]} 43. Rg1 {[%clk 0:00:02]}  h3 {[%clk 0:00:07]} 44. Rh1 {[%clk 0:00:02]}  Rh7 {[%clk 0:00:07]} 45. Kd2 {[%clk 0:00:02]}  g5 {[%clk 0:00:07]} 46. Ke3 {[%clk 0:00:03]}  Ke5 {[%clk 0:00:07]} 47. c4 {[%clk 0:00:03]}  f4+ {[%clk 0:00:07]} 48. Kf3 {[%clk 0:00:04]}  Kf5 {[%clk 0:00:08]} 49. d6 {[%clk 0:00:04]}  g4+ {[%clk 0:00:08]} 50. Ke2 {[%clk 0:00:05]}  g3 {[%clk 0:00:08]} 51. Kf3 {[%clk 0:00:04]}  g2 {[%clk 0:00:07]} 52. Rd1 {[%clk 0:00:04]}  h2 {[%clk 0:00:07]} 53. Kxg2 {[%clk 0:00:04]}  Ke6 {[%clk 0:00:04]} 54. c5 {[%clk 0:00:03]}  f3+ {[%clk 0:00:03]} 55. Kh1 {[%clk 0:00:04]}  Kd7 {[%clk 0:00:03]} 56. Rf1 {[%clk 0:00:04]}  Kc6 {[%clk 0:00:03]} 57. Rd1 {[%clk 0:00:04]}  Rd7 {[%clk 0:00:01]} 58. Rc1 {[%clk 0:00:03]}  f2 {[%clk 0:00:01]} 59. Kxh2 {[%clk 0:00:02]}  Rf7 {[%clk 0:00:01]} 60. Kg2 {[%clk 0:00:02]}  Rf5 {[%clk 0:00:01]} 61. Kf1 {[%clk 0:00:02]}  Rd5 {[%clk 0:00:01]} 62. Kxf2 {[%clk 0:00:02]}  Kd7 {[%clk 0:00:02]} 63. Ke3 {[%clk 0:00:03]}  Kc6 {[%clk 0:00:01]} 64. Ke4 {[%clk 0:00:03]}  Rd2 {[%clk 0:00:02]} 65. Ke5 {[%clk 0:00:04]}  Re2+ {[%clk 0:00:02]} 66. Kf6 {[%clk 0:00:04]}  Kd7 {[%clk 0:00:03]} 67. Kf5 {[%clk 0:00:05]}  Kc6 {[%clk 0:00:03]} 68. Rc4 {[%clk 0:00:05]}  Rf2+ {[%clk 0:00:04]} 69. Ke4 {[%clk 0:00:06]}  Re2+ {[%clk 0:00:04]} 70. Kd3 {[%clk 0:00:06]}  Re1 {[%clk 0:00:04]} 71. Rc2 {[%clk 0:00:07]}  Re5 {[%clk 0:00:04]} 72. Kd4 {[%clk 0:00:07]}  Re1 {[%clk 0:00:04]} 73. Rd2 {[%clk 0:00:06]}  Rc1 {[%clk 0:00:03]} 74. Ke4 {[%clk 0:00:05]}  Kd7 {[%clk 0:00:03]} 75. Kd5 {[%clk 0:00:05]}  Rc3 {[%clk 0:00:02]} 76. Rd4 {[%clk 0:00:06]}  Rc1 {[%clk 0:00:02]} 77. Rf4 {[%clk 0:00:04]}  Rd1+ {[%clk 0:00:02]} 78. Kc4 {[%clk 0:00:05]}  Kc6 {[%clk 0:00:02]} 79. Rd4 {[%clk 0:00:04]}  Rc1+ {[%clk 0:00:02]} 80. Kd3 {[%clk 0:00:05]}  Kd7 {[%clk 0:00:02]} 81. Rd5 {[%clk 0:00:04]}  Rd1+ {[%clk 0:00:02]} 82. Kc4 {[%clk 0:00:05]}  Rc1+ {[%clk 0:00:02]} 83. Kb5 {[%clk 0:00:06]}  Rb1+ {[%clk 0:00:03]} 84. Ka5 {[%clk 0:00:06]}  Ra1+ {[%clk 0:00:03]} 85. Kb4 {[%clk 0:00:07]}  Rb1+ {[%clk 0:00:04]} 86. Kc3 {[%clk 0:00:08]}  Rc1+ {[%clk 0:00:05]} 87. Kd2 {[%clk 0:00:08]}  Rc4 {[%clk 0:00:03]} 88. Kd3 {[%clk 0:00:09]}  Rc1 {[%clk 0:00:04]} 89. Ke4 {[%clk 0:00:09]}  Re1+ {[%clk 0:00:04]} 90. Kf5 {[%clk 0:00:09]}  Rf1+ {[%clk 0:00:05]} 91. Kg6 {[%clk 0:00:10]}  Rg1+ {[%clk 0:00:05]} 92. Kf6 {[%clk 0:00:11]}  Rf1+ {[%clk 0:00:05]} 93. Rf5 {[%clk 0:00:11]}  Re1 {[%clk 0:00:05]} 94. Kf7 {[%clk 0:00:08]}  Re2 {[%clk 0:00:05]} 95. Kg6 {[%clk 0:00:08]}  Rg2+ {[%clk 0:00:04]} 96. Kf6 {[%clk 0:00:08]}  Re2 {[%clk 0:00:05]} 97. Re5 {[%clk 0:00:08]}  Rf2+ {[%clk 0:00:05]} 98. Kg5 {[%clk 0:00:09]}  Rg2+ {[%clk 0:00:05]} 99. Kf4 {[%clk 0:00:10]}  Rf2+ {[%clk 0:00:06]} 100. Ke3 {[%clk 0:00:10]}  Rf1 {[%clk 0:00:06]} 101. Re7+ {[%clk 0:00:11]}  Kc6 {[%clk 0:00:06]} 102. Rc7+ {[%clk 0:00:12]}  Kd5 {[%clk 0:00:04]} 103. d7 {[%clk 0:00:12]}  Re1+ {[%clk 0:00:04]} 104. Kd2 {[%clk 0:00:13]}  Rd1+ {[%clk 0:00:04]} 105. Kxd1 {[%clk 0:00:13]}  Kc4 {[%clk 0:00:02]} 106. d8=Q {[%clk 0:00:13]} 1-0


[Site "https://www.chess.com"]

[Event "Titled Tuesday Blitz November 14 Early 2023"]
[White "Korchmar, Vasiliy"]
[Black "Souleidis, Georgios"]
[WhiteFideId "24131750"]
[BlackFideId "4206827"]
[WhiteElo "2750"]
[BlackElo "2617"]
[Result "1-0"]
[Round "8"]
[TimeControl "180+1"]
[Date "2023.11.14"]
[WhiteClock "0:00:10"]
[BlackClock "0:00:00"]
[Board "48"]

1. e4 {[%clk 0:03:00]}  c5 {[%clk 0:03:00]} 2. d4 {[%clk 0:03:00]}  e6 {[%clk 0:03:00]} 3. d5 {[%clk 0:03:00]}  exd5 {[%clk 0:03:00]} 4. exd5 {[%clk 0:03:01]}  d6 {[%clk 0:03:01]} 5. Nc3 {[%clk 0:03:00]}  Nf6 {[%clk 0:02:59]} 6. Bb5+ {[%clk 0:03:01]}  Bd7 {[%clk 0:02:59]} 7. a4 {[%clk 0:03:01]}  Be7 {[%clk 0:02:58]} 8. Nf3 {[%clk 0:03:02]}  O-O {[%clk 0:02:59]} 9. h3 {[%clk 0:03:00]}  Bf5 {[%clk 0:02:58]} 10. O-O {[%clk 0:03:00]}  h6 {[%clk 0:02:58]} 11. Re1 {[%clk 0:02:59]}  a6 {[%clk 0:02:58]} 12. Bd3 {[%clk 0:02:58]}  Bxd3 {[%clk 0:02:58]} 13. Qxd3 {[%clk 0:02:59]}  Nbd7 {[%clk 0:02:57]} 14. Bf4 {[%clk 0:02:59]}  Re8 {[%clk 0:02:57]} 15. Nd2 {[%clk 0:02:59]}  Qc7 {[%clk 0:02:48]} 16. Nc4 {[%clk 0:02:59]}  Bf8 {[%clk 0:02:47]} 17. a5 {[%clk 0:02:58]}  b5 {[%clk 0:02:42]} 18. axb6 {[%clk 0:02:57]}  Nxb6 {[%clk 0:02:43]} 19. Na5 {[%clk 0:02:56]}  Rxe1+ {[%clk 0:02:40]} 20. Rxe1 {[%clk 0:02:56]}  Nbxd5 {[%clk 0:02:25]} 21. Nxd5 {[%clk 0:02:57]}  Nxd5 {[%clk 0:02:25]} 22. Qxd5 {[%clk 0:02:58]}  Qxa5 {[%clk 0:02:25]} 23. Bd2 {[%clk 0:02:07]}  Qd8 {[%clk 0:02:21]} 24. Re3 {[%clk 0:02:08]}  Ra7 {[%clk 0:01:56]} 25. Rg3 {[%clk 0:02:08]}  Qf6 {[%clk 0:01:30]} 26. Bc3 {[%clk 0:02:05]}  Qe6 {[%clk 0:01:30]} 27. Qc6 {[%clk 0:01:59]}  d5 {[%clk 0:01:23]} 28. Qa4 {[%clk 0:01:40]}  d4 {[%clk 0:01:21]} 29. Bd2 {[%clk 0:01:41]}  g6 {[%clk 0:00:58]} 30. Qa5 {[%clk 0:01:19]}  Rd7 {[%clk 0:00:44]} 31. Rb3 {[%clk 0:01:07]}  Qd6 {[%clk 0:00:19]} 32. Rb6 {[%clk 0:01:05]}  Qc7 {[%clk 0:00:18]} 33. Qxa6 {[%clk 0:01:05]}  Qe5 {[%clk 0:00:14]} 34. Qc8 {[%clk 0:01:03]}  Qc7 {[%clk 0:00:10]} 35. Rb8 {[%clk 0:00:47]}  Qxc8 {[%clk 0:00:10]} 36. Rxc8 {[%clk 0:00:48]}  Kg7 {[%clk 0:00:07]} 37. Bxh6+ {[%clk 0:00:48]}  Kxh6 {[%clk 0:00:08]} 38. Rxf8 {[%clk 0:00:48]}  c4 {[%clk 0:00:09]} 39. Kf1 {[%clk 0:00:47]}  d3 {[%clk 0:00:08]} 40. cxd3 {[%clk 0:00:48]}  cxd3 {[%clk 0:00:08]} 41. Ke1 {[%clk 0:00:49]}  Rb7 {[%clk 0:00:09]} 42. Rd8 {[%clk 0:00:44]}  Rb3 {[%clk 0:00:06]} 43. h4 {[%clk 0:00:21]}  f5 {[%clk 0:00:06]} 44. g3 {[%clk 0:00:20]}  Kh5 {[%clk 0:00:06]} 45. f3 {[%clk 0:00:19]}  Kh6 {[%clk 0:00:03]} 46. g4 {[%clk 0:00:13]}  fxg4 {[%clk 0:00:03]} 47. fxg4 {[%clk 0:00:14]}  Kg7 {[%clk 0:00:01]} 48. Kd2 {[%clk 0:00:10]}  Rxb2+ {[%clk 0:00:01]} 49. Kxd3 {[%clk 0:00:11]}  Rh2 {[%clk 0:00:02]} 50. Rd7+ {[%clk 0:00:10]}  Kg8 {[%clk 0:00:02]} 51. Ke4 {[%clk 0:00:09]}  Rxh4 {[%clk 0:00:00]} 52. Kf4 {[%clk 0:00:10]} 1-0


[Site "https://www.chess.com"]

[Event "Titled Tuesday Blitz November 14 Early 2023"]
[White "Atakhan, Abtin"]
[Black "Vlassov, Nikolai"]
[WhiteFideId "22502203"]
[BlackFideId "4103360"]
[WhiteElo "2746"]
[BlackElo "2613"]
[Result "1-0"]
[Round "8"]
[TimeControl "180+1"]
[Date "2023.11.14"]
[WhiteClock "0:00:02"]
[BlackClock "0:00:09"]
[Board "49"]

1. c4 {[%clk 0:03:00]}  e5 {[%clk 0:02:59]} 2. g3 {[%clk 0:03:01]}  h5 {[%clk 0:02:57]} 3. Nf3 {[%clk 0:02:58]}  e4 {[%clk 0:02:56]} 4. Nd4 {[%clk 0:02:59]}  h4 {[%clk 0:02:55]} 5. Bg2 {[%clk 0:02:59]}  d5 {[%clk 0:02:52]} 6. cxd5 {[%clk 0:02:56]}  Qxd5 {[%clk 0:02:52]} 7. Qa4+ {[%clk 0:02:40]}  Bd7 {[%clk 0:02:50]} 8. Nc3 {[%clk 0:02:40]}  Qc5 {[%clk 0:02:26]} 9. Nb3 {[%clk 0:02:07]}  Bxa4 {[%clk 0:02:21]} 10. Nxc5 {[%clk 0:02:08]}  Bc6 {[%clk 0:02:21]} 11. d4 {[%clk 0:01:49]}  e3 {[%clk 0:01:59]} 12. Bxc6+ {[%clk 0:01:32]}  Nxc6 {[%clk 0:01:59]} 13. Bxe3 {[%clk 0:01:27]}  hxg3 {[%clk 0:01:57]} 14. fxg3 {[%clk 0:01:28]}  O-O-O {[%clk 0:01:54]} 15. O-O-O {[%clk 0:01:21]}  Nf6 {[%clk 0:01:44]} 16. Nb3 {[%clk 0:01:18]}  Bb4 {[%clk 0:01:36]} 17. Bg5 {[%clk 0:01:11]}  Rd6 {[%clk 0:01:15]} 18. Rdf1 {[%clk 0:01:04]}  Nxd4 {[%clk 0:01:03]} 19. Nxd4 {[%clk 0:01:02]}  Rxd4 {[%clk 0:01:02]} 20. Rxf6 {[%clk 0:01:00]}  gxf6 {[%clk 0:00:59]} 21. Bxf6 {[%clk 0:01:01]}  Rhd8 {[%clk 0:00:54]} 22. Bxd4 {[%clk 0:01:00]}  Rxd4 {[%clk 0:00:55]} 23. Kc2 {[%clk 0:00:50]}  c6 {[%clk 0:00:50]} 24. Rf1 {[%clk 0:00:45]}  Rd7 {[%clk 0:00:44]} 25. Ne4 {[%clk 0:00:42]}  Kd8 {[%clk 0:00:39]} 26. a3 {[%clk 0:00:36]}  Bf8 {[%clk 0:00:38]} 27. Rd1 {[%clk 0:00:31]}  Rxd1 {[%clk 0:00:38]} 28. Kxd1 {[%clk 0:00:32]}  f5 {[%clk 0:00:38]} 29. Ng5 {[%clk 0:00:29]}  Ke7 {[%clk 0:00:37]} 30. Kc2 {[%clk 0:00:29]}  Bh6 {[%clk 0:00:31]} 31. Nf3 {[%clk 0:00:27]}  Kd6 {[%clk 0:00:27]} 32. Kd3 {[%clk 0:00:25]}  Kd5 {[%clk 0:00:27]} 33. e3 {[%clk 0:00:20]}  b5 {[%clk 0:00:24]} 34. Nd4 {[%clk 0:00:18]}  Bg7 {[%clk 0:00:24]} 35. b4 {[%clk 0:00:14]}  Bf8 {[%clk 0:00:17]} 36. Nxf5 {[%clk 0:00:14]}  c5 {[%clk 0:00:18]} 37. e4+ {[%clk 0:00:13]}  Ke5 {[%clk 0:00:18]} 38. bxc5 {[%clk 0:00:09]}  Bxc5 {[%clk 0:00:18]} 39. h4 {[%clk 0:00:06]}  Bxa3 {[%clk 0:00:18]} 40. h5 {[%clk 0:00:07]}  Bc1 {[%clk 0:00:15]} 41. h6 {[%clk 0:00:07]}  Bxh6 {[%clk 0:00:12]} 42. Nxh6 {[%clk 0:00:07]}  a5 {[%clk 0:00:13]} 43. Ng4+ {[%clk 0:00:04]}  Ke6 {[%clk 0:00:12]} 44. Ne3 {[%clk 0:00:02]}  Ke5 {[%clk 0:00:11]} 45. Ng4+ {[%clk 0:00:02]}  Ke6 {[%clk 0:00:11]} 46. Kd4 {[%clk 0:00:03]}  a4 {[%clk 0:00:12]} 47. Ne3 {[%clk 0:00:02]}  a3 {[%clk 0:00:11]} 48. Nc2 {[%clk 0:00:02]}  a2 {[%clk 0:00:10]} 49. g4 {[%clk 0:00:02]}  b4 {[%clk 0:00:10]} 50. Na1 {[%clk 0:00:02]}  Kf6 {[%clk 0:00:09]} 51. Nb3 {[%clk 0:00:03]}  Kg5 {[%clk 0:00:09]} 52. e5 {[%clk 0:00:03]}  Kxg4 {[%clk 0:00:09]} 53. e6 {[%clk 0:00:03]}  Kf3 {[%clk 0:00:09]} 54. e7 {[%clk 0:00:04]}  Ke2 {[%clk 0:00:10]} 55. e8=Q+ {[%clk 0:00:04]}  Kd1 {[%clk 0:00:11]} 56. Qe4 {[%clk 0:00:04]}  a1=Q+ {[%clk 0:00:10]} 57. Nxa1 {[%clk 0:00:03]}  b3 {[%clk 0:00:10]} 58. Qd3+ {[%clk 0:00:02]}  Kc1 {[%clk 0:00:10]} 59. Kc3 {[%clk 0:00:02]}  b2 {[%clk 0:00:09]} 60. Qf1# {[%clk 0:00:02]} 1-0


[Site "https://www.chess.com"]